{"text_format":"3","workbook":"xlsx","n_sheets":4,"sheets":["list","data","Лист1","Лист2"],"not_rendered":{"defined_names":8},"read":"whole","date_system":"1900"}

{"sheet":"list","index":0,"n_rows":143,"n_cols":16,"rows_kept":143}
["№","СНИЛС","Фамилия","Имя","Отчество","Пол","Дата рождения","Участник с ОВЗ","Класс","Класс участия","Балл","Макс. Балл","Статус","Призер МЭ прошлого года","Учитель","Место работы учителя"]
[1,2,3,4,5,6,7,8,9,10,11,12,13,14,15,16]
[1,16995725647,"Гатин","Самат","Ленарович","М","2011-12-06","нет",5,5,4,8,"призер","нет","ХуснутдиноваГелюся Галияхматовна","Муниципальное бюджетное общеобразовательное учреждение \"Гимназия №2\" г.Нижнекамска Республики Татарстан"]
[2,17305576063,"Суфиянов","Расул","Ильмирович","М","2012-07-24","нет",5,5,4,8,"призер","нет","ХуснутдиноваГелюся Галияхматовна","Муниципальное бюджетное общеобразовательное учреждение \"Гимназия №2\" г.Нижнекамска Республики Татарстан"]
[3,17070094950,"Исхаков","Амир","Айратович","М","2012-02-16","нет",5,5,4,8,"призер","нет","Кинзябулатова Энзе Ильдусовна","Муниципальное бюджетное общеобразовательное учреждение \"Гимназия №2\" г.Нижнекамска Республики Татарстан"]
[4,16964708321,"Шафиков","Амир","Айратович","М","2011-12-04","нет",5,5,3,8,"Участник","нет","Иванова Лейсан Фархатовна","Муниципальное бюджетное общеобразовательное учреждение \"Гимназия №2\" г.Нижнекамска Республики Татарстан"]
[5,17395853117,"Харитонова","Полина","Александровна","Ж","2012-10-02","нет",5,5,3,8,"Участник","нет","ХуснутдиноваГелюся Галияхматовна","Муниципальное бюджетное общеобразовательное учреждение \"Гимназия №2\" г.Нижнекамска Республики Татарстан"]
[6,17409353777,"Биктяшова","Самира","Юрьевна","Ж","18.10.2012","нет",5,5,2,8,"Участник","нет","ХуснутдиноваГелюся Галияхматовна","Муниципальное бюджетное общеобразовательное учреждение \"Гимназия №2\" г.Нижнекамска Республики Татарстан"]
[7,16971500591,"Мубаракшина","Регина","Рамисовна","Ж","07.12.2011","нет",5,5,2,8,"Участник","нет","ХуснутдиноваГелюся Галияхматовна","Муниципальное бюджетное общеобразовательное учреждение \"Гимназия №2\" г.Нижнекамска Республики Татарстан"]
[8,"16995723643","Алексеева","Маргарита","Денисовна","Ж","29.12.2011","нет",5,5,2,8,"Участник","нет","Иванова Лейсан Фархатовна","Муниципальное бюджетное общеобразовательное учреждение \"Гимназия №2\" г.Нижнекамска Республики Татарстан"]
[9,17196440992,"Гайфутдинов","Радмир","Ирекович","М","2012-04-21","нет",5,5,2,8,"Участник","нет","Кинзябулатова Энзе Ильдусовна","Муниципальное бюджетное общеобразовательное учреждение \"Гимназия №2\" г.Нижнекамска Республики Татарстан"]
[10,17316415353,"Нафиков","Данис","Рамисович","М","2012-07-31","нет",5,5,2,8,"Участник","нет","Кинзябулатова Энзе Ильдусовна","Муниципальное бюджетное общеобразовательное учреждение \"Гимназия №2\" г.Нижнекамска Республики Татарстан"]
[11,17031097432,"Тухватуллина","Альмира","Рамилевна","Ж","2012-01-22","нет",5,5,2,8,"Участник","нет","Кинзябулатова Энзе Ильдусовна","Муниципальное бюджетное общеобразовательное учреждение \"Гимназия №2\" г.Нижнекамска Республики Татарстан"]
[12,16998185252,"Бикбова","Диляра","Азатовна","Ж","2012-01-07","нет",5,5,1,8,"Участник","нет","ХуснутдиноваГелюся Галияхматовна","Муниципальное бюджетное общеобразовательное учреждение \"Гимназия №2\" г.Нижнекамска Республики Татарстан"]
[13,16924804091,"Набиева","Зарина","Руслановна","Ж","16.11.2011","нет",5,5,1,8,"Участник","нет","ХуснутдиноваГелюся Галияхматовна","Муниципальное бюджетное общеобразовательное учреждение \"Гимназия №2\" г.Нижнекамска Республики Татарстан"]
[14,17298853832,"Хакимова","Руфина","Динаровна","Ж","2012-07-14","нет",5,5,1,8,"Участник","нет","ХуснутдиноваГелюся Галияхматовна","Муниципальное бюджетное общеобразовательное учреждение \"Гимназия №2\" г.Нижнекамска Республики Татарстан"]
[15,17132286043,"Хакимов","Айнур","Раушанович","М","27.03.2012","нет",5,5,1,8,"Участник","нет","ХуснутдиноваГелюся Галияхматовна","Муниципальное бюджетное общеобразовательное учреждение \"Гимназия №2\" г.Нижнекамска Республики Татарстан"]
[16,17354139874,"Нафикова","Динара","Ильдаровна","Ж","2012-09-03","нет",5,5,1,8,"Участник","нет","ХуснутдиноваГелюся Галияхматовна","Муниципальное бюджетное общеобразовательное учреждение \"Гимназия №2\" г.Нижнекамска Республики Татарстан"]
[17,17274649600,"Хакимов","Нурислам","Рамисович","М","2012-06-21","нет",5,5,1,8,"Участник","нет","ХуснутдиноваГелюся Галияхматовна","Муниципальное бюджетное общеобразовательное учреждение \"Гимназия №2\" г.Нижнекамска Республики Татарстан"]
[18,16995723946,"Габдуллина","Ясмина","Фанисовна","Ж","2012-01-13","нет",5,5,1,8,"Участник","нет","Кинзябулатова Энзе Ильдусовна","Муниципальное бюджетное общеобразовательное учреждение \"Гимназия №2\" г.Нижнекамска Республики Татарстан"]
[19,17371475584,"Гильфанова","Эмилия","Ленаровна","Ж","2012-09-14","нет",5,5,1,8,"Участник","нет","Кинзябулатова Энзе Ильдусовна","Муниципальное бюджетное общеобразовательное учреждение \"Гимназия №2\" г.Нижнекамска Республики Татарстан"]
[20,"17369145294","Ахметов ","Данияз","Алмазович","М","2012-08-31","нет",5,5,0,8,"Участник","нет","ХуснутдиноваГелюся Галияхматовна","Муниципальное бюджетное общеобразовательное учреждение \"Гимназия №2\" г.Нижнекамска Республики Татарстан"]
[21,17377224185,"Гарифуллина","Амиля","Альбертовна","Ж","2012-09-09","нет",5,5,0,8,"Участник","нет","ХуснутдиноваГелюся Галияхматовна","Муниципальное бюджетное общеобразовательное учреждение \"Гимназия №2\" г.Нижнекамска Республики Татарстан"]
[22,17152040629,"Набиева","Алия","Нургаязовна","Ж","01.04.2012","нет",5,5,0,8,"Участник","нет","ХуснутдиноваГелюся Галияхматовна","Муниципальное бюджетное общеобразовательное учреждение \"Гимназия №2\" г.Нижнекамска Республики Татарстан"]
[23,17040560935,"Миннегалиева","Альмира","Альбертовна","Ж","19.01.2012","нет",5,5,0,8,"Участник","нет","ХуснутдиноваГелюся Галияхматовна","Муниципальное бюджетное общеобразовательное учреждение \"Гимназия №2\" г.Нижнекамска Республики Татарстан"]
[24,17385473606,"Вилданов","Наиль","Маратович","М","2012-09-30","нет",5,5,0,8,"Участник","нет","Иванова Лейсан Фархатовна","Муниципальное бюджетное общеобразовательное учреждение \"Гимназия №2\" г.Нижнекамска Республики Татарстан"]
[25,17216504648,"Галиев","Азамат","Айратович","М","2012-05-21","нет",5,5,0,8,"Участник","нет","ХуснутдиноваГелюся Галияхматовна","Муниципальное бюджетное общеобразовательное учреждение \"Гимназия №2\" г.Нижнекамска Республики Татарстан"]
[26,17060591049,"Калимуллина","Альбина","Рафисовна","Ж","2012-02-15","нет",5,5,0,8,"Участник","нет","ХуснутдиноваГелюся Галияхматовна","Муниципальное бюджетное общеобразовательное учреждение \"Гимназия №2\" г.Нижнекамска Республики Татарстан"]
[27,16995727550,"Хадиева","Илюза","Ильшатовна","Ж","2011-12-29","нет",5,5,0,8,"Участник","нет","ХуснутдиноваГелюся Галияхматовна","Муниципальное бюджетное общеобразовательное учреждение \"Гимназия №2\" г.Нижнекамска Республики Татарстан"]
[28,17379309001,"Хусаенов","Рамазан","Ренатович","М","2012-09-21","нет",5,5,0,8,"Участник","нет","ХуснутдиноваГелюся Галияхматовна","Муниципальное бюджетное общеобразовательное учреждение \"Гимназия №2\" г.Нижнекамска Республики Татарстан"]
[29,17276181282,"Валиахметов","Амир","Наилевич","М","2012-06-11","нет",5,5,0,8,"Участник","нет","Кинзябулатова Энзе Ильдусовна","Муниципальное бюджетное общеобразовательное учреждение \"Гимназия №2\" г.Нижнекамска Республики Татарстан"]
[30,17166509883,"Сулейманов","Амир","Ренатович","М","2012-04-04","нет",5,5,0,8,"Участник","нет","Кинзябулатова Энзе Ильдусовна","Муниципальное бюджетное общеобразовательное учреждение \"Гимназия №2\" г.Нижнекамска Республики Татарстан"]
[31,17196441590,"Фаттахов","Йусуф","Табрисович","М","2012-04-29","нет",5,5,0,8,"Участник","нет","Кинзябулатова Энзе Ильдусовна","Муниципальное бюджетное общеобразовательное учреждение \"Гимназия №2\" г.Нижнекамска Республики Татарстан"]
[32,17276186797,"Халиков","Муса","Айдарович","М","2012-06-21","нет",5,5,0,8,"Участник","нет","Кинзябулатова Энзе Ильдусовна","Муниципальное бюджетное общеобразовательное учреждение \"Гимназия №2\" г.Нижнекамска Республики Татарстан"]
[33,17140047627,"Хаммадиев","Айрат","Маратович","М","2012-03-31","нет",5,5,0,8,"Участник","нет","Кинзябулатова Энзе Ильдусовна","Муниципальное бюджетное общеобразовательное учреждение \"Гимназия №2\" г.Нижнекамска Республики Татарстан"]
[34,17462936196,"Хурматова","Сайдель","Ранилевна","Ж","2012-11-16","нет",5,5,0,8,"Участник","нет","Кинзябулатова Энзе Ильдусовна","Муниципальное бюджетное общеобразовательное учреждение \"Гимназия №2\" г.Нижнекамска Республики Татарстан"]
[35,16751181575,"Гасимова","Алина","Ильнуровна","Ж","2011-07-10","нет",6,6,6,8,"Победитель","нет","Кинзябулатова Энзе Ильдусовна","Муниципальное бюджетное общеобразовательное учреждение \"Гимназия №2\" г.Нижнекамска Республики Татарстан"]
[36,16293884709,"Сафина","Амина","Ильясовна","Ж","2010-11-15","нет",6,6,5,8,"Призер","нет","Иванова Лейсан Фархатовна","Муниципальное бюджетное общеобразовательное учреждение \"Гимназия №2\" г.Нижнекамска Республики Татарстан"]
[37,16447844297,"Метрухина","Диана","Руслановна","Ж","2011-03-10","нет",6,6,4,8,"Призер","нет","Ибрагимова Ксения Радиковна ","Муниципальное бюджетное общеобразовательное учреждение \"Гимназия №2\" г.Нижнекамска Республики Татарстан"]
[38,16465763097,"Шаманский","Александр","Егорович","М","2011-03-10","нет",6,6,3,8,"Участник","нет","Кинзябулатова Энзе Ильдусовна","Муниципальное бюджетное общеобразовательное учреждение \"Гимназия №2\" г.Нижнекамска Республики Татарстан"]
[39,16379101878,"Сахапова","Зарина","Алмазовна","Ж","2010-12-26","нет",6,6,2,8,"Участник","нет","Кинзябулатова Энзе Ильдусовна","Муниципальное бюджетное общеобразовательное учреждение \"Гимназия №2\" г.Нижнекамска Республики Татарстан"]
[40,16952854316,"Хамидуллина","Руфина","Ильдаровна","Ж","2011-09-23","нет",6,6,2,8,"Участник","нет","Кинзябулатова Энзе Ильдусовна","Муниципальное бюджетное общеобразовательное учреждение \"Гимназия №2\" г.Нижнекамска Республики Татарстан"]
[41,16599819951,"Гибадуллина","Алина","Ильдаровна","Ж","2011-04-26","нет",6,6,2,8,"Участник","нет","Иванова Лейсан Фархатовна","Муниципальное бюджетное общеобразовательное учреждение \"Гимназия №2\" г.Нижнекамска Республики Татарстан"]
[42,16426116348,"Зиннатуллина","Язиля","Ильшатовна","Ж","2011-02-16","нет",6,6,2,8,"Участник","нет","Иванова Лейсан Фархатовна","Муниципальное бюджетное общеобразовательное учреждение \"Гимназия №2\" г.Нижнекамска Республики Татарстан"]
[43,16500905441,"Набиуллина","Язгуль","Ильгизаровна","Ж","2011-03-21","нет",6,6,2,8,"Участник","нет","Иванова Лейсан Фархатовна","Муниципальное бюджетное общеобразовательное учреждение \"Гимназия №2\" г.Нижнекамска Республики Татарстан"]
[44,16501936760,"Ахмадеева","Зарина","Айдаровна","Ж","2011-02-28","нет",6,6,1,8,"Участник","нет","Кинзябулатова Энзе Ильдусовна","Муниципальное бюджетное общеобразовательное учреждение \"Гимназия №2\" г.Нижнекамска Республики Татарстан"]
[45,16563310562,"Каюмов","Камиль","Русланович","М","2011-04-12","нет",6,6,1,8,"Участник","нет","Кинзябулатова Энзе Ильдусовна","Муниципальное бюджетное общеобразовательное учреждение \"Гимназия №2\" г.Нижнекамска Республики Татарстан"]
[46,16896248940,"Сабиров","Карим","Ильдарович","М","2011-10-19","нет",6,6,1,8,"Участник","нет","Кинзябулатова Энзе Ильдусовна","Муниципальное бюджетное общеобразовательное учреждение \"Гимназия №2\" г.Нижнекамска Республики Татарстан"]
[47,16407940067,"Ахмадишин","Рамазан","Радикович","М","2010-12-17","нет",6,6,1,8,"Участник","нет","Ибрагимова Ксения Радиковна ","Муниципальное бюджетное общеобразовательное учреждение \"Гимназия №2\" г.Нижнекамска Республики Татарстан"]
[48,16563313467,"Ризаев","Тимур","Денисович","М","2011-04-20","нет",6,6,1,8,"Участник","нет","Ибрагимова Ксения Радиковна ","Муниципальное бюджетное общеобразовательное учреждение \"Гимназия №2\" г.Нижнекамска Республики Татарстан"]
[49,16892136202,"Гатиятуллин","Зуфар","Наилевич","М","2011-10-11","нет",6,6,1,8,"Участник","нет","Иванова Лейсан Фархатовна","Муниципальное бюджетное общеобразовательное учреждение \"Гимназия №2\" г.Нижнекамска Республики Татарстан"]
[50,16372946998,"Фарзиев","Азамат","Линарович","М","2010-12-15","нет",6,6,1,8,"Участник","нет","Иванова Лейсан Фархатовна","Муниципальное бюджетное общеобразовательное учреждение \"Гимназия №2\" г.Нижнекамска Республики Татарстан"]
[51,16395103975,"Бадртдинов","Инсаф","Ильдусович","М","2011-01-20","нет",6,6,0,8,"Участник","нет","Кинзябулатова Энзе Ильдусовна","Муниципальное бюджетное общеобразовательное учреждение \"Гимназия №2\" г.Нижнекамска Республики Татарстан"]
[52,16363452366,"Гимадиев","Ирек","Ильшатович","М","2010-12-18","нет",6,6,0,8,"Участник","нет","Ибрагимова Ксения Радиковна ","Муниципальное бюджетное общеобразовательное учреждение \"Гимназия №2\" г.Нижнекамска Республики Татарстан"]
[53,16776938441,"Шарифуллин","Данир","Рафисович","М","2011-08-01","нет",6,6,0,8,"Участник","нет","Иванова Лейсан Фархатовна","Муниципальное бюджетное общеобразовательное учреждение \"Гимназия №2\" г.Нижнекамска Республики Татарстан"]
[54,16065096864,"Фасхутдинов","Искандер","Ильдарович","М","2010-06-06","нет",7,7,3,8,"Участник","нет","Сахабутдинова Саимя Минвалиевна","Муниципальное бюджетное общеобразовательное учреждение \"Гимназия №2\" г.Нижнекамска Республики Татарстан"]
[55,16115694053,"Галлямов","Аскар","Марселевич","М","2010-05-15","нет",7,7,3,8,"Участник","нет","Сахабутдинова Саимя Минвалиевна","Муниципальное бюджетное общеобразовательное учреждение \"Гимназия №2\" г.Нижнекамска Республики Татарстан"]
[56,16470317863,"Гизатуллина","Лейсан","Ленаровна","Ж","21.11.1009","нет",7,7,3,8,"Участник","нет","Сахабутдинова Саимя Минвалиевна","Муниципальное бюджетное общеобразовательное учреждение \"Гимназия №2\" г.Нижнекамска Республики Татарстан"]
[57,16447843800,"Курбангалеева","Руфина","Руслановна","Ж","2010-05-30","нет",7,7,3,8,"Участник","нет","Сахабутдинова Саимя Минвалиевна","Муниципальное бюджетное общеобразовательное учреждение \"Гимназия №2\" г.Нижнекамска Республики Татарстан"]
[58,16206645955,"Хисамеева","Лейсан","Марселевна","Ж","2010-08-26","нет",7,7,2,8,"Участник","нет","Сахабутдинова Саимя Минвалиевна","Муниципальное бюджетное общеобразовательное учреждение \"Гимназия №2\" г.Нижнекамска Республики Татарстан"]
[59,15790181182,"Ибрагимов","Инсаф","Ильнарович","М","2010-02-13","нет",7,7,2,8,"Участник","нет","Сахабутдинова Саимя Минвалиевна","Муниципальное бюджетное общеобразовательное учреждение \"Гимназия №2\" г.Нижнекамска Республики Татарстан"]
[60,15940019662,"Сираева","Ясмина","Ильназовна","Ж","2010-04-09","нет",7,7,2,8,"Участник","нет","Сахабутдинова Саимя Минвалиевна","Муниципальное бюджетное общеобразовательное учреждение \"Гимназия №2\" г.Нижнекамска Республики Татарстан"]
[61,15965629827,"Фассахутдинов","Тамерлан","Динарович","М","2010-03-30","нет",7,7,2,8,"Участник","нет","Сахабутдинова Саимя Минвалиевна","Муниципальное бюджетное общеобразовательное учреждение \"Гимназия №2\" г.Нижнекамска Республики Татарстан"]
[62,16138496480,"Денисова","Диана","Эльнаровна","Ж","2010-07-06","нет",7,7,1,8,"Участник","нет","Сахабутдинова Саимя Минвалиевна","Муниципальное бюджетное общеобразовательное учреждение \"Гимназия №2\" г.Нижнекамска Республики Татарстан"]
[63,16210865137,"Шамсутдинов","Руслан","Альбертович","М","2010-08-24","нет",7,7,1,8,"Участник","призёр ЗЭ","Сахабутдинова Саимя Минвалиевна","Муниципальное бюджетное общеобразовательное учреждение \"Гимназия №2\" г.Нижнекамска Республики Татарстан"]
[64,16142435032,"Сабирова","Мадина","Руслановна","Ж","2010-07-10","нет",7,7,1,8,"Участник","нет","Сахабутдинова Саимя Минвалиевна","Муниципальное бюджетное общеобразовательное учреждение \"Гимназия №2\" г.Нижнекамска Республики Татарстан"]
[65,15842380377,"Валиев","Нурислам","Айнурович","М","2010-03-01","нет",7,7,1,8,"Участник","нет","Иванова Лейсан Фархатовна","Муниципальное бюджетное общеобразовательное учреждение \"Гимназия №2\" г.Нижнекамска Республики Татарстан"]
[66,17127146046,"Хамидуллин","Ильяс","Наилевич","М","2009-10-08","нет",7,7,1,8,"Участник","нет","Иванова Лейсан Фархатовна","Муниципальное бюджетное общеобразовательное учреждение \"Гимназия №2\" г.Нижнекамска Республики Татарстан"]
[67,15633445263,"Ахатов","Карим","Ильдарович","М","2009-10-16","нет",7,7,1,8,"Участник","нет","Сахабутдинова Саимя Минвалиевна","Муниципальное бюджетное общеобразовательное учреждение \"Гимназия №2\" г.Нижнекамска Республики Татарстан"]
[68,16497894544,"Мингалиев","Ринат","Рамилевич","М","2010-12-01","нет",7,7,0,8,"Участник","нет","Сахабутдинова Саимя Минвалиевна","Муниципальное бюджетное общеобразовательное учреждение \"Гимназия №2\" г.Нижнекамска Республики Татарстан"]
[69,16198001968,"Харисов","Рамазан","Рамисович","М","2010-08-15","нет",7,7,0,8,"Участник","нет","Сахабутдинова Саимя Минвалиевна","Муниципальное бюджетное общеобразовательное учреждение \"Гимназия №2\" г.Нижнекамска Республики Татарстан"]
[70,16130131299,"Сабирова","Диляра","Айдаровна","Ж","2010-06-15","нет",7,7,0,8,"Участник","нет","Сахабутдинова Саимя Минвалиевна","Муниципальное бюджетное общеобразовательное учреждение \"Гимназия №2\" г.Нижнекамска Республики Татарстан"]
[71,15786342709,"Гайфутдинов","Муса","Радикович","М","2010-02-16","нет",7,7,0,8,"Участник","нет","Иванова Лейсан Фархатовна","Муниципальное бюджетное общеобразовательное учреждение \"Гимназия №2\" г.Нижнекамска Республики Татарстан"]
[72,15738377809,"Попов","Тимур","Юрьевич","М","2009-12-24","нет",7,7,0,8,"Участник","нет","Иванова Лейсан Фархатовна","Муниципальное бюджетное общеобразовательное учреждение \"Гимназия №2\" г.Нижнекамска Республики Татарстан"]
[73,15847680313,"Сабиров","Дамир","Ильнурович","М","2009-09-26","нет",7,7,0,8,"Участник","нет","Иванова Лейсан Фархатовна","Муниципальное бюджетное общеобразовательное учреждение \"Гимназия №2\" г.Нижнекамска Республики Татарстан"]
[74,16894265122,"Шириазданов","Тимур","Артурович","М","2010-01-01","нет",7,7,0,8,"Участник","нет","Иванова Лейсан Фархатовна","Муниципальное бюджетное общеобразовательное учреждение \"Гимназия №2\" г.Нижнекамска Республики Татарстан"]
[75,16415652361,"Рахимуллина","Элина","Рамилевна","Ж","2010-05-13","нет",7,7,0,8,"Участник","нет","Сахабутдинова Саимя Минвалиевна","Муниципальное бюджетное общеобразовательное учреждение \"Гимназия №2\" г.Нижнекамска Республики Татарстан"]
[76,16004847438,"Шагиев","Радмир","Русланович","М","2010-04-30","нет",7,7,0,8,"Участник","нет","Сахабутдинова Саимя Минвалиевна","Муниципальное бюджетное общеобразовательное учреждение \"Гимназия №2\" г.Нижнекамска Республики Татарстан"]
[77,15368327885,"Бакиров","Азат","Алмазович","М","2008-10-30","нет",8,8,5,8,"Призер","нет","ХуснутдиноваГелюся Галияхматовна","Муниципальное бюджетное общеобразовательное учреждение \"Гимназия №2\" г.Нижнекамска Республики Татарстан"]
[78,16307393663,"Гайсина","Сылу","Забировна","Ж","2009-03-08","нет",8,8,4,8,"Призер","нет","Ибрагимова Ксения Радиковна ","Муниципальное бюджетное общеобразовательное учреждение \"Гимназия №2\" г.Нижнекамска Республики Татарстан"]
[79,16623315555,"Бикушев","Амир","Маратович","М","2009-10-10","нет",8,8,3,8,"Участник","нет","ХуснутдиноваГелюся Галияхматовна","Муниципальное бюджетное общеобразовательное учреждение \"Гимназия №2\" г.Нижнекамска Республики Татарстан"]
[80,15927194198,"Гарафутдинова","Амина","Ильфатовна","Ж","2009-10-07","нет",8,8,3,8,"Участник","нет","ХуснутдиноваГелюся Галияхматовна","Муниципальное бюджетное общеобразовательное учреждение \"Гимназия №2\" г.Нижнекамска Республики Татарстан"]
[81,16019330432,"Гасимова","Динара","Айратовна","Ж","2009-01-16","нет",8,8,2,8,"Участник","нет","ХуснутдиноваГелюся Галияхматовна","Муниципальное бюджетное общеобразовательное учреждение \"Гимназия №2\" г.Нижнекамска Республики Татарстан"]
[82,15307835964,"Газизов","Адель","Фаргатович","М","2008-11-01","нет",8,8,2,8,"Участник","нет","Ибрагимова Ксения Радиковна ","Муниципальное бюджетное общеобразовательное учреждение \"Гимназия №2\" г.Нижнекамска Республики Татарстан"]
[83,16411734444,"Кикнадзе","Ландыш","Рустемовна","Ж","2009-03-08","нет",8,8,2,8,"Участник","нет","Ибрагимова Ксения Радиковна ","Муниципальное бюджетное общеобразовательное учреждение \"Гимназия №2\" г.Нижнекамска Республики Татарстан"]
[84,15667516702,"Гилязова","Гульназ","Маратовна","Ж","2009-10-14","нет",8,8,1,8,"Участник","нет","Иванова Лейсан Фархатовна","Муниципальное бюджетное общеобразовательное учреждение \"Гимназия №2\" г.Нижнекамска Республики Татарстан"]
[85,15511528137,"Иванова","Лилиана","Радиковна","Ж","2008-12-22","нет",8,8,1,8,"Участник","нет","Иванова Лейсан Фархатовна","Муниципальное бюджетное общеобразовательное учреждение \"Гимназия №2\" г.Нижнекамска Республики Татарстан"]
[86,17658860025,"Габдрахманова","Азалия","Ильсуровна","Ж","2009-10-19","нет",8,8,1,8,"Участник","нет","ХуснутдиноваГелюся Галияхматовна","Муниципальное бюджетное общеобразовательное учреждение \"Гимназия №2\" г.Нижнекамска Республики Татарстан"]
[87,15560979498,"Бадртдинов","Ислам","Ильдусович","М","2009-06-15","нет",8,8,0,8,"Участник","нет","ХуснутдиноваГелюся Галияхматовна","Муниципальное бюджетное общеобразовательное учреждение \"Гимназия №2\" г.Нижнекамска Республики Татарстан"]
[88,15583374794,"Гайнуллина","Лейла","Ильнуровна","Ж","2009-06-28","нет",8,8,0,8,"Участник","нет","ХуснутдиноваГелюся Галияхматовна","Муниципальное бюджетное общеобразовательное учреждение \"Гимназия №2\" г.Нижнекамска Республики Татарстан"]
[89,15678687235,"Мухамедшин","Самат","Мансурович","М","2009-11-19","нет",8,8,0,8,"Участник","нет","ХуснутдиноваГелюся Галияхматовна","Муниципальное бюджетное общеобразовательное учреждение \"Гимназия №2\" г.Нижнекамска Республики Татарстан"]
[90,16307392661,"Хазеева","Ралина","Маратовна","Ж","2009-01-27","нет",8,8,0,8,"Участник","нет","ХуснутдиноваГелюся Галияхматовна","Муниципальное бюджетное общеобразовательное учреждение \"Гимназия №2\" г.Нижнекамска Республики Татарстан"]
[91,16063154438,"Галиуллина","Айзиряк","Ильназовна","Ж","2009-05-07","нет",8,8,0,8,"Участник","нет","Ибрагимова Ксения Радиковна ","Муниципальное бюджетное общеобразовательное учреждение \"Гимназия №2\" г.Нижнекамска Республики Татарстан"]
[92,15500443825,"Миннигалиев   ","Раиль","Рамилевич","М","2009-06-04","нет",8,8,0,8,"Участник","нет","Ибрагимова Ксения Радиковна ","Муниципальное бюджетное общеобразовательное учреждение \"Гимназия №2\" г.Нижнекамска Республики Татарстан"]
[93,15432584864,"Нигматзянов","Булат ","Рамилевич","М","2008-03-03","нет",9,9,5,8,"Призер","нет","Галиякбарова Фания Шарифьяновна","Муниципальное бюджетное общеобразовательное учреждение \"Гимназия №2\" г.Нижнекамска Республики Татарстан"]
[94,15902871985,"Сиразиев","Камиль","Рустамович","М","2008-02-27","нет",9,9,3,8,"Участник","нет","Галиякбарова Фания Шарифьяновна","Муниципальное бюджетное общеобразовательное учреждение \"Гимназия №2\" г.Нижнекамска Республики Татарстан"]
[95,16110464920,"Гайнутдинова","Азалия","Айратовна","Ж","2007-12-21","нет",9,9,2,8,"Участник","нет","Галиякбарова Фания Шарифьяновна","Муниципальное бюджетное общеобразовательное учреждение \"Гимназия №2\" г.Нижнекамска Республики Татарстан"]
[96,15082942159,"Салахов","Азат","Илшатович","М","2008-05-13","нет",9,9,2,8,"Участник","нет","Галиякбарова Фания Шарифьяновна","Муниципальное бюджетное общеобразовательное учреждение \"Гимназия №2\" г.Нижнекамска Республики Татарстан"]
[97,15796812322,"Фазлеева","Амира","Дамировна","Ж","2008-02-03","нет",9,9,2,8,"Участник","нет","Галиякбарова Фания Шарифьяновна","Муниципальное бюджетное общеобразовательное учреждение \"Гимназия №2\" г.Нижнекамска Республики Татарстан"]
[98,16390257876,"Тюленев","Данила","Сергеевич","М","2008-04-30","нет",9,9,2,8,"Участник","нет","Галиякбарова Фания Шарифьяновна","Муниципальное бюджетное общеобразовательное учреждение \"Гимназия №2\" г.Нижнекамска Республики Татарстан"]
[99,15145110314,"Гайнуллина","Алия","Фархадовна","Ж","2008-07-08","нет",9,9,1,8,"Участник","нет","Галиякбарова Фания Шарифьяновна","Муниципальное бюджетное общеобразовательное учреждение \"Гимназия №2\" г.Нижнекамска Республики Татарстан"]
[100,15903317156,"Ислямова","Эльмира","Ильсуровна","Ж","2008-08-10","нет",9,9,1,8,"Участник","нет","Галиякбарова Фания Шарифьяновна","Муниципальное бюджетное общеобразовательное учреждение \"Гимназия №2\" г.Нижнекамска Республики Татарстан"]
[101,15150967861,"Фалахиева","Алсу","Рафисовна","Ж","2008-07-27","нет",9,9,1,8,"Участник","нет","Галиякбарова Фания Шарифьяновна","Муниципальное бюджетное общеобразовательное учреждение \"Гимназия №2\" г.Нижнекамска Республики Татарстан"]
[102,15296754602,"Сахабиев","Шамиль","Ирекович","М","2008-11-18","нет",9,9,0,8,"Участник","нет","Галиякбарова Фания Шарифьяновна","Муниципальное бюджетное общеобразовательное учреждение \"Гимназия №2\" г.Нижнекамска Республики Татарстан"]
[103,15796052908,"Галимов","Булат","Ришатович","М","2008-07-31","нет",9,9,0,8,"Участник","нет","Галиякбарова Фания Шарифьяновна","Муниципальное бюджетное общеобразовательное учреждение \"Гимназия №2\" г.Нижнекамска Республики Татарстан"]
[104,15531157746,"Гамирова","Диана","Ильнаровна","Ж","2008-01-28","нет",9,9,0,8,"Участник","нет","Галиякбарова Фания Шарифьяновна","Муниципальное бюджетное общеобразовательное учреждение \"Гимназия №2\" г.Нижнекамска Республики Татарстан"]
[105,16452304246,"Музипова","Амира","Айнуровна","Ж","2008-07-19","нет",9,9,0,8,"Участник","нет","Галиякбарова Фания Шарифьяновна","Муниципальное бюджетное общеобразовательное учреждение \"Гимназия №2\" г.Нижнекамска Республики Татарстан"]
[106,15190455858,"Рахимова","Лилия","Ильшатовна","Ж","2008-08-18","нет",9,9,0,8,"Участник","нет","Галиякбарова Фания Шарифьяновна","Муниципальное бюджетное общеобразовательное учреждение \"Гимназия №2\" г.Нижнекамска Республики Татарстан"]
[107,15026598558,"Гарифуллин","Наиль","Маратович","М","2008-04-16","нет",9,9,0,8,"Участник","нет","Галиякбарова Фания Шарифьяновна","Муниципальное бюджетное общеобразовательное учреждение \"Гимназия №2\" г.Нижнекамска Республики Татарстан"]
[108,14909378198,"Гатауллин","Азат","Жаудатович","М","2007-12-02","нет",9,9,0,8,"Участник","нет","Галиякбарова Фания Шарифьяновна","Муниципальное бюджетное общеобразовательное учреждение \"Гимназия №2\" г.Нижнекамска Республики Татарстан"]
[109,14962770704,"Гирфанов","Инсаф","Рустемович","М","2008-01-30","нет",9,9,0,8,"Участник","нет","Галиякбарова Фания Шарифьяновна","Муниципальное бюджетное общеобразовательное учреждение \"Гимназия №2\" г.Нижнекамска Республики Татарстан"]
[110,16940279494,"Каримова","Динара","Руслановна","Ж","2008-12-02","нет",9,9,0,8,"Участник","нет","ХуснутдиноваГелюся Галияхматовна","Муниципальное бюджетное общеобразовательное учреждение \"Гимназия №2\" г.Нижнекамска Республики Татарстан"]
[111,14849572312,"Хабибулин","Шамиль","Раисович","М","2006-05-27","нет",10,10,5,8,"Призер","нет","ХуснутдиноваГелюся Галияхматовна","Муниципальное бюджетное общеобразовательное учреждение \"Гимназия №2\" г.Нижнекамска Республики Татарстан"]
[112,14806458679,"Иванов","Тимур","Валентинович","М","2007-10-10","нет",10,10,5,8,"Призер","нет","ХуснутдиноваГелюся Галияхматовна","Муниципальное бюджетное общеобразовательное учреждение \"Гимназия №2\" г.Нижнекамска Республики Татарстан"]
[113,14811242637,"Адиева","Амелия","Альбертовна","Ж","2007-09-13","нет",10,10,4,8,"Призер","нет","ХуснутдиноваГелюся Галияхматовна","Муниципальное бюджетное общеобразовательное учреждение \"Гимназия №2\" г.Нижнекамска Республики Татарстан"]
[114,15706792746,"Метрухина","Эмелия","Руслановна","Ж","2007-06-13","нет",10,10,4,8,"Призер","нет","ХуснутдиноваГелюся Галияхматовна","Муниципальное бюджетное общеобразовательное учреждение \"Гимназия №2\" г.Нижнекамска Республики Татарстан"]
[115,15772426285,"Садикова","Эмира","Эриковна","Ж","2007-11-30","нет",10,10,3,8,"Участник","нет","ХуснутдиноваГелюся Галияхматовна","Муниципальное бюджетное общеобразовательное учреждение \"Гимназия №2\" г.Нижнекамска Республики Татарстан"]
[116,14559548098,"Галиева","Карина","Раяновна","Ж","2007-02-22","нет",10,10,3,8,"Участник","нет","ХуснутдиноваГелюся Галияхматовна","Муниципальное бюджетное общеобразовательное учреждение \"Гимназия №2\" г.Нижнекамска Республики Татарстан"]
[117,15817982715,"Галлямова","Диляра","Равилевна","Ж","2007-06-19","нет",10,10,2,8,"Участник","нет","ХуснутдиноваГелюся Галияхматовна","Муниципальное бюджетное общеобразовательное учреждение \"Гимназия №2\" г.Нижнекамска Республики Татарстан"]
[118,15833133157,"Гатина","Камила","Ленаровна","Ж","2007-03-07","нет",10,10,2,8,"Участник","нет","ХуснутдиноваГелюся Галияхматовна","Муниципальное бюджетное общеобразовательное учреждение \"Гимназия №2\" г.Нижнекамска Республики Татарстан"]
[119,15927191394,"Салахутдинова","Дина","Ильнуровна","Ж","2007-03-08","нет",10,10,2,8,"Участник","нет","ХуснутдиноваГелюся Галияхматовна","Муниципальное бюджетное общеобразовательное учреждение \"Гимназия №2\" г.Нижнекамска Республики Татарстан"]
[120,17023688762,"Алексеева","Аделина","Денисовна","Ж","2007-11-02","нет",10,10,2,8,"Участник","нет","ХуснутдиноваГелюся Галияхматовна","Муниципальное бюджетное общеобразовательное учреждение \"Гимназия №2\" г.Нижнекамска Республики Татарстан"]
[121,14628270770,"Исламова","Алиса","Ильгамовна","Ж","2007-03-19","нет",10,10,2,8,"Участник","нет","ХуснутдиноваГелюся Галияхматовна","Муниципальное бюджетное общеобразовательное учреждение \"Гимназия №2\" г.Нижнекамска Республики Татарстан"]
[122,16604661264,"Харисов","Камиль","Ренатович","М","2007-01-23","нет",10,10,2,8,"Участник","нет","ХуснутдиноваГелюся Галияхматовна","Муниципальное бюджетное общеобразовательное учреждение \"Гимназия №2\" г.Нижнекамска Республики Татарстан"]
[123,15797364124,"Фасахова","Камила","Ринатовна","Ж","2006-12-24","нет",10,10,1,8,"Участник","нет","Иванова Лейсан Фархатовна","Муниципальное бюджетное общеобразовательное учреждение \"Гимназия №2\" г.Нижнекамска Республики Татарстан"]
[124,15869985862,"Даутова","Гульшат","Рифнуровна","Ж","2008-02-25","нет",10,10,1,8,"Участник","нет","ХуснутдиноваГелюся Галияхматовна","Муниципальное бюджетное общеобразовательное учреждение \"Гимназия №2\" г.Нижнекамска Республики Татарстан"]
[125,15817994722,"Кадирова","Алина","Марсовна","Ж","2007-06-19","нет",10,10,1,8,"Участник","нет","ХуснутдиноваГелюся Галияхматовна","Муниципальное бюджетное общеобразовательное учреждение \"Гимназия №2\" г.Нижнекамска Республики Татарстан"]
[126,15716463780,"Харитонов","Никита","Александрович","М","2006-11-19","нет",10,10,1,8,"Участник","нет","ХуснутдиноваГелюся Галияхматовна","Муниципальное бюджетное общеобразовательное учреждение \"Гимназия №2\" г.Нижнекамска Республики Татарстан"]
[127,14618247062,"Даутова","Гузель","Гамилевна","Ж","2007-04-21","нет",10,10,1,8,"Участник","нет","ХуснутдиноваГелюся Галияхматовна","Муниципальное бюджетное общеобразовательное учреждение \"Гимназия №2\" г.Нижнекамска Республики Татарстан"]
[128,14607721861,"Имамиев","Амир","Альбертович","М","2007-03-20","нет",10,10,0,8,"Участник","нет","ХуснутдиноваГелюся Галияхматовна","Муниципальное бюджетное общеобразовательное учреждение \"Гимназия №2\" г.Нижнекамска Республики Татарстан"]
[129,14790809800,"Мухлисуллин","Ратмир","Артурович","М","2007-07-06","нет",10,10,0,8,"Участник","нет","ХуснутдиноваГелюся Галияхматовна","Муниципальное бюджетное общеобразовательное учреждение \"Гимназия №2\" г.Нижнекамска Республики Татарстан"]
[130,15809902695,"Хурматуллина","Разалия","Равилевна","Ж","2006-07-15","нет",11,11,6,8,"Победитель","нет","Ибрагимова Ксения Радиковна ","Муниципальное бюджетное общеобразовательное учреждение \"Гимназия №2\" г.Нижнекамска Республики Татарстан"]
[131,15797360419,"Галявиев ","Самат","Рафкатович","М","2006-10-10","нет",11,11,5,8,"Призер","нет","Галиякбарова Фания Шарифьяновна","Муниципальное бюджетное общеобразовательное учреждение \"Гимназия №2\" г.Нижнекамска Республики Татарстан"]
[132,16004280816,"Рудометов","Артём","Антонович","М","2006-04-16","нет",11,11,4,8,"Призер","нет","Галиякбарова Фания Шарифьяновна","Муниципальное бюджетное общеобразовательное учреждение \"Гимназия №2\" г.Нижнекамска Республики Татарстан"]
[133,15809897627,"Гайфуллин","Айнур","Ильнарович","М","2006-11-25","нет",11,11,3,8,"Участник","нет","Галиякбарова Фания Шарифьяновна","Муниципальное бюджетное общеобразовательное учреждение \"Гимназия №2\" г.Нижнекамска Республики Татарстан"]
[134,15833140659,"Сафин","Алмаз","Ренатович","М","2006-11-13","нет",11,11,3,8,"Участник","нет","Галиякбарова Фания Шарифьяновна","Муниципальное бюджетное общеобразовательное учреждение \"Гимназия №2\" г.Нижнекамска Республики Татарстан"]
[135,15757795430,"Гильмутдинова","Альмира","Раилевна","Ж","2007-01-24","нет",11,11,1,8,"Участник","нет","Галиякбарова Фания Шарифьяновна","Муниципальное бюджетное общеобразовательное учреждение \"Гимназия №2\" г.Нижнекамска Республики Татарстан"]
[136,15873132583,"Давлетшина","Амира","Руслановна","Ж","2006-08-25","нет",11,11,1,8,"Участник","нет","Галиякбарова Фания Шарифьяновна","Муниципальное бюджетное общеобразовательное учреждение \"Гимназия №2\" г.Нижнекамска Республики Татарстан"]
[137,15817996221,"Пичугин","Михаил","Сергеевич","М","2006-02-05","нет",11,11,1,8,"Участник","нет","Галиякбарова Фания Шарифьяновна","Муниципальное бюджетное общеобразовательное учреждение \"Гимназия №2\" г.Нижнекамска Республики Татарстан"]
[138,15818005969,"Гилязова","Ансария","Айдаровна","Ж","2006-03-09","нет",11,11,0,8,"Участник","нет","Галиякбарова Фания Шарифьяновна","Муниципальное бюджетное общеобразовательное учреждение \"Гимназия №2\" г.Нижнекамска Республики Татарстан"]
[139,15927186200,"Хабиров","Райнур","Айратович","М","2006-09-24","нет",11,11,0,8,"Участник","нет","Галиякбарова Фания Шарифьяновна","Муниципальное бюджетное общеобразовательное учреждение \"Гимназия №2\" г.Нижнекамска Республики Татарстан"]
[140,15833146873,"Бажин","Егор","Дмитриевич","М","2006-07-23","нет",11,11,0,8,"Участник","нет","Ибрагимова Ксения Радиковна ","Муниципальное бюджетное общеобразовательное учреждение \"Гимназия №2\" г.Нижнекамска Республики Татарстан"]
[141,15849323501,"Тухватова","Камиля ","Ильшатовна","Ж","2006-06-01","нет",11,11,0,8,"Участник","нет","Ибрагимова Ксения Радиковна ","Муниципальное бюджетное общеобразовательное учреждение \"Гимназия №2\" г.Нижнекамска Республики Татарстан"]

{"sheet":"data","index":1,"n_rows":25,"n_cols":10,"rows_kept":25}
[{"$nulls":6},"1 - Техника, технология и техническое творчество","2 - Культура дома, дизайн и технологии","3 - Робототехника","4 - Информационная безопасность"]
["1 - Техника, технологии и техническое творчество","1.1  Практика по ручной деревообработке",{"$nulls":4},"1.1 Практика по ручной деревообработке","2.1 Ручная обработка швейного изделия или узла","3.1 Робототехника","4.1 Не предусмотрена"]
["2 - Культура дома, дизайн и технологии","1.2 Практика по механической деревообработке",{"$nulls":4},"1.2 Практика по механической деревообработке","2.2 Механическая обработка швейного изделия или узла + Моделирование"]
["3 - Робототехника","1.3 Практика по ручной металлообработке",{"$nulls":4},"1.3 Практика по ручной металлообработке","2.3 Обработка швейного изделия или узла на швейно-вышивальном оборудовании + Моделирование"]
["4 - Информационная безопасность","1.4 Практика по механической металлообработке",{"$nulls":4},"1.4 Практика по механической металлообработке","2.4 3D-моделирование и печать"]
[null,"1.5 Электрорадиотехника",{"$nulls":4},"1.5 Электрорадиотехника","2.5 Практика по работе на лазерно-гравировальном станке"]
[null,"1.6 3D-моделирование и печать",{"$nulls":4},"1.6 3D-моделирование и печать","2.6 Промышленный дизайн"]
[null,"1.7 Практика по работе на лазерно-гравировальном станке",{"$nulls":4},"1.7 Практика по работе на лазерно-гравировальном станке"]
[null,"1.8 Промышленный дизайн",{"$nulls":4},"1.8 Промышленный дизайн"]
[null,"2.1 Ручная обработка швейного изделия или узла"]
[null,"2.2 Механическая обработка швейного изделия или узла + Моделирование",{"$nulls":6},"3.1 Робототехника","4.1 Не предусмотрена"]
[null,"2.3 Обработка швейного изделия или узла на швейно-вышивальном оборудовании + Моделирование"]
[null,"2.4 3D-моделирование и печать"]
[null,"2.5 Практика по работе на лазерно-гравировальном станке"]
[null,"2.6 Промышленный дизайн"]
[null,"3.1 Робототехника"]
[null,"4.1 Не предусмотрена"]
[]
[]
[]
[]
[]
["участник"]
["призер",null,"да","да",null,"м"]
["победитель",null,null,"нет",null,"ж"]

{"sheet":"Лист1","index":2,"n_rows":175,"n_cols":3,"rows_kept":175}
["Валиахметов Амир Наилевич","sma23520/edu160744/5/v8q57",{"$f":"VLOOKUP(B:B,Лист2!A:B,2,0)","v":0}]
["Габдуллина Ясмина Фанисовна","sma23520/edu160744/5/v9qr3",{"$f":"VLOOKUP(B:B,Лист2!A:B,2,0)","v":1}]
["Гайфутдинов Радмир Ирекович","sma23520/edu160744/5/v284z",{"$f":"VLOOKUP(B:B,Лист2!A:B,2,0)","v":2}]
["Гильфанова Эмилия Ленаровна","sma23520/edu160744/5/vq7wq",{"$f":"VLOOKUP(B:B,Лист2!A:B,2,0)","v":1}]
["Исхаков Амир Айратович","sma23520/edu160744/5/gw36r",{"$f":"VLOOKUP(B:B,Лист2!A:B,2,0)","v":4}]
["Малова Эльяна Николаевна","sma23520/edu160744/5/v32q2",{"$f":"VLOOKUP(B:B,Лист2!A:B,2,0)","v":{"$error":"#N/A"}}]
["Минибаева Амилия Айнуровна","sma23520/edu160744/5/v4499",{"$f":"VLOOKUP(B:B,Лист2!A:B,2,0)","v":{"$error":"#N/A"}}]
["Нафиков Данис Рамисович","sma23520/edu160744/5/gz88g",{"$f":"VLOOKUP(B:B,Лист2!A:B,2,0)","v":2}]
["Сулейманов Амир Ренатович","sma23520/edu160744/5/g5z4v",{"$f":"VLOOKUP(B:B,Лист2!A:B,2,0)","v":0}]
["Тухватуллина Альмира Рамилевна","sma23520/edu160744/5/g636v",{"$f":"VLOOKUP(B:B,Лист2!A:B,2,0)","v":2}]
["Фаттахов Йусуф Табрисович","sma23520/edu160744/5/g72wv",{"$f":"VLOOKUP(B:B,Лист2!A:B,2,0)","v":0}]
["Халиков Муса Айдарович","sma23520/edu160744/5/gr4wg",{"$f":"VLOOKUP(B:B,Лист2!A:B,2,0)","v":0}]
[" ","sma23520/edu160744/5/v887v",{"$f":"VLOOKUP(B:B,Лист2!A:B,2,0)","v":{"$error":"#N/A"}}]
["Халиуллин Данил Линарович","sma23520/edu160744/5/v973v",{"$f":"VLOOKUP(B:B,Лист2!A:B,2,0)","v":{"$error":"#N/A"}}]
["Хамидуллин Исмагил Наилевич","sma23520/edu160744/5/v29zg",{"$f":"VLOOKUP(B:B,Лист2!A:B,2,0)","v":{"$error":"#N/A"}}]
["Хаммадиев Айрат Маратович","sma23520/edu160744/5/vq5qv",{"$f":"VLOOKUP(B:B,Лист2!A:B,2,0)","v":0}]
["Хурматова Сайдель Ранилевна","sma23520/edu160744/5/gwzrv",{"$f":"VLOOKUP(B:B,Лист2!A:B,2,0)","v":0}]
["Галиев Азамат Айратович","sma23520/edu160744/5/v3r2g",{"$f":"VLOOKUP(B:B,Лист2!A:B,2,0)","v":0}]
["Гатин Самат Ленарович","sma23520/edu160744/5/v469v",{"$f":"VLOOKUP(B:B,Лист2!A:B,2,0)","v":4}]
["Зиятдинов Салават Ильшатович","sma23520/edu160744/5/gzz8g",{"$f":"VLOOKUP(B:B,Лист2!A:B,2,0)","v":{"$error":"#N/A"}}]
["Калимуллина Альбина Рафисовна","sma23520/edu160744/5/g544v",{"$f":"VLOOKUP(B:B,Лист2!A:B,2,0)","v":0}]
["Нафикова Динара Ильдаровна","sma23520/edu160744/5/g6q6v",{"$f":"VLOOKUP(B:B,Лист2!A:B,2,0)","v":1}]
["Сахаутдинова Амира Ратмировна","sma23520/edu160744/5/g7qwg",{"$f":"VLOOKUP(B:B,Лист2!A:B,2,0)","v":{"$error":"#N/A"}}]
["Суфиянов Расул Ильмирович","sma23520/edu160744/5/gr3wv",{"$f":"VLOOKUP(B:B,Лист2!A:B,2,0)","v":4}]
["Хадиева Илюза Ильшатовна","sma23520/edu160744/5/v897g",{"$f":"VLOOKUP(B:B,Лист2!A:B,2,0)","v":0}]
["Хакимов Нурислам Рамисович","sma23520/edu160744/5/v983g",{"$f":"VLOOKUP(B:B,Лист2!A:B,2,0)","v":1}]
["Харитонова Полина Александровна","sma23520/edu160744/5/v26zv",{"$f":"VLOOKUP(B:B,Лист2!A:B,2,0)","v":3}]
["Хусаенов Рамазан Ренатович","sma23520/edu160744/5/vq4qg",{"$f":"VLOOKUP(B:B,Лист2!A:B,2,0)","v":0}]
["Ахметов Данияз Алмазович","sma23520/edu160744/5/gw7rg",{"$f":"VLOOKUP(B:B,Лист2!A:B,2,0)","v":0}]
["Бикбова Диляра Азатовна","sma23520/edu160744/5/v352v",{"$f":"VLOOKUP(B:B,Лист2!A:B,2,0)","v":0}]
["Биктяшова Самира Юрьевна","sma23520/edu160744/5/v4z9v",{"$f":"VLOOKUP(B:B,Лист2!A:B,2,0)","v":1}]
["Гарифуллина Амиля Альбертовна","sma23520/edu160744/5/gz98v",{"$f":"VLOOKUP(B:B,Лист2!A:B,2,0)","v":0}]
["Зиннатуллина Инзиля Марселевна","sma23520/edu160744/5/g574g",{"$f":"VLOOKUP(B:B,Лист2!A:B,2,0)","v":{"$error":"#N/A"}}]
["Иль Альберт Юрьевич","sma23520/edu160744/5/g666g",{"$f":"VLOOKUP(B:B,Лист2!A:B,2,0)","v":{"$error":"#N/A"}}]
["Камасин Самир Рушанович","sma23520/edu160744/5/g75wg",{"$f":"VLOOKUP(B:B,Лист2!A:B,2,0)","v":{"$error":"#N/A"}}]
["Мубаракшина Регина Рамисовна","sma23520/edu160744/5/gr8wg",{"$f":"VLOOKUP(B:B,Лист2!A:B,2,0)","v":2}]
["Набиева Алия Нургаязовна","sma23520/edu160744/5/v8z7v",{"$f":"VLOOKUP(B:B,Лист2!A:B,2,0)","v":0}]
["Набиева Зарина Руслановна","sma23520/edu160744/5/v943g",{"$f":"VLOOKUP(B:B,Лист2!A:B,2,0)","v":1}]
[" ","sma23520/edu160744/5/v2qzg",{"$f":"VLOOKUP(B:B,Лист2!A:B,2,0)","v":0}]
["Уразайкина Диана Артуровна","sma23520/edu160744/5/vq9qv",{"$f":"VLOOKUP(B:B,Лист2!A:B,2,0)","v":{"$error":"#N/A"}}]
["Хакимова Руфина Динаровна","sma23520/edu160744/5/gwqrg",{"$f":"VLOOKUP(B:B,Лист2!A:B,2,0)","v":1}]
["Шамилова Дилия Маратовна","sma23520/edu160744/5/v382g",{"$f":"VLOOKUP(B:B,Лист2!A:B,2,0)","v":{"$error":"#N/A"}}]
["Федоров Тимур Александрович","sma23520/edu160744/5/v4r9v",{"$f":"VLOOKUP(B:B,Лист2!A:B,2,0)","v":{"$error":"#N/A"}}]
["Алексеева Маргарита Денисовна","sma23520/edu160744/5/gzr8g",{"$f":"VLOOKUP(B:B,Лист2!A:B,2,0)","v":2}]
["Вилданов Наиль Маратович","sma23520/edu160744/5/g554g",{"$f":"VLOOKUP(B:B,Лист2!A:B,2,0)","v":0}]
["Шафиков Амир Айратович","sma23520/edu160744/5/g6z6g",{"$f":"VLOOKUP(B:B,Лист2!A:B,2,0)","v":3}]
[" ","sma23520/edu160744/5/g7wwg",{"$f":"VLOOKUP(B:B,Лист2!A:B,2,0)","v":0}]
[" ","sma23520/edu160744/5/grrwg",{"$f":"VLOOKUP(B:B,Лист2!A:B,2,0)","v":1}]
["Абдеев Малик  Рамилевич","sma23620/edu160744/6/gr75v",{"$f":"VLOOKUP(B:B,Лист2!A:B,2,0)","v":{"$error":"#N/A"}}]
["Амирханова Сюмбель  Гумеровна","sma23620/edu160744/6/v843v",{"$f":"VLOOKUP(B:B,Лист2!A:B,2,0)","v":{"$error":"#N/A"}}]
["Ахмадеева Зарина   Айдаровна","sma23620/edu160744/6/v93qv",{"$f":"VLOOKUP(B:B,Лист2!A:B,2,0)","v":1}]
["Бадртдинов Инсаф  Ильдусович","sma23620/edu160744/6/v224v",{"$f":"VLOOKUP(B:B,Лист2!A:B,2,0)","v":0}]
["Вагизова Амиля  Тимуровна","sma23620/edu160744/6/vq25g",{"$f":"VLOOKUP(B:B,Лист2!A:B,2,0)","v":{"$error":"#N/A"}}]
["Гайнуллина Алия  Айратовна","sma23620/edu160744/6/gw87v",{"$f":"VLOOKUP(B:B,Лист2!A:B,2,0)","v":{"$error":"#N/A"}}]
["Гайнутдинов Дамир  Ниязович","sma23620/edu160744/6/v3z8g",{"$f":"VLOOKUP(B:B,Лист2!A:B,2,0)","v":{"$error":"#N/A"}}]
["Гасимова Алина  Ильнуровна","sma23620/edu160744/6/v4wqg",{"$f":"VLOOKUP(B:B,Лист2!A:B,2,0)","v":6}]
["Гизетдинова Рияна  Риналовна","sma23620/edu160744/6/gz34v",{"$f":"VLOOKUP(B:B,Лист2!A:B,2,0)","v":{"$error":"#N/A"}}]
["Гилязова Айзиля  Айратовна","sma23620/edu160744/6/g529v",{"$f":"VLOOKUP(B:B,Лист2!A:B,2,0)","v":{"$error":"#N/A"}}]
["Добрынина Дарья Евгеньевна","sma23620/edu160744/6/g697v",{"$f":"VLOOKUP(B:B,Лист2!A:B,2,0)","v":{"$error":"#N/A"}}]
["Идиатуллин Самир  Ильгизарович","sma23620/edu160744/6/g788v",{"$f":"VLOOKUP(B:B,Лист2!A:B,2,0)","v":{"$error":"#N/A"}}]
["Каюмов Камиль  Русланович","sma23620/edu160744/6/gr95v",{"$f":"VLOOKUP(B:B,Лист2!A:B,2,0)","v":1}]
["Махмутов Эмиль  Ренатович","sma23620/edu160744/6/v8r3v",{"$f":"VLOOKUP(B:B,Лист2!A:B,2,0)","v":{"$error":"#N/A"}}]
["Нуртдинов Зульфат  Ильгамович","sma23620/edu160744/6/v92qg",{"$f":"VLOOKUP(B:B,Лист2!A:B,2,0)","v":{"$error":"#N/A"}}]
["Рамазанова Рената   Камилевна","sma23620/edu160744/6/v2z4v",{"$f":"VLOOKUP(B:B,Лист2!A:B,2,0)","v":{"$error":"#N/A"}}]
["Сабиров Карим  Ильдарович","sma23620/edu160744/6/vqq5v",{"$f":"VLOOKUP(B:B,Лист2!A:B,2,0)","v":1}]
["Сагдиева Ралина  Рамилевна","sma23620/edu160744/6/gw57g",{"$f":"VLOOKUP(B:B,Лист2!A:B,2,0)","v":{"$error":"#N/A"}}]
["Сафина Айсылу  Айратовна","sma23620/edu160744/6/v348g",{"$f":"VLOOKUP(B:B,Лист2!A:B,2,0)","v":{"$error":"#N/A"}}]
["Сахапова Зарина  Алмазовна","sma23620/edu160744/6/v45qg",{"$f":"VLOOKUP(B:B,Лист2!A:B,2,0)","v":2}]
["Хайруллин Эмиль  Ленарович","sma23620/edu160744/6/gz54v",{"$f":"VLOOKUP(B:B,Лист2!A:B,2,0)","v":{"$error":"#N/A"}}]
["Хамидуллина Руфина  Ильдаровна","sma23620/edu160744/6/g5w9g",{"$f":"VLOOKUP(B:B,Лист2!A:B,2,0)","v":2}]
["Хасанов Рустем  Ирекович","sma23620/edu160744/6/g657v",{"$f":"VLOOKUP(B:B,Лист2!A:B,2,0)","v":{"$error":"#N/A"}}]
["Шаманский Александр  Егорович","sma23620/edu160744/6/g768v",{"$f":"VLOOKUP(B:B,Лист2!A:B,2,0)","v":3}]
["Гимадиев Ирек Ильшатович","sma23620/edu160744/6/gr55v",{"$f":"VLOOKUP(B:B,Лист2!A:B,2,0)","v":0}]
["Ахмадишин Рамазан Радикович","sma23620/edu160744/6/v863v",{"$f":"VLOOKUP(B:B,Лист2!A:B,2,0)","v":1}]
["Вахитов  Тимур  Ринатович ","sma23620/edu160744/6/v95qv",{"$f":"VLOOKUP(B:B,Лист2!A:B,2,0)","v":{"$error":"#N/A"}}]
["Аюпов  Булат  Рафаэлевич ","sma23620/edu160744/6/v254g",{"$f":"VLOOKUP(B:B,Лист2!A:B,2,0)","v":{"$error":"#N/A"}}]
["Метрухина  Диана  Руслановна ","sma23620/edu160744/6/vq65g",{"$f":"VLOOKUP(B:B,Лист2!A:B,2,0)","v":4}]
["Гилязов  Раиль  Ильфатович","sma23620/edu160744/6/gwr7v",{"$f":"VLOOKUP(B:B,Лист2!A:B,2,0)","v":{"$error":"#N/A"}}]
["Ризаев  Тимур  Денисович","sma23620/edu160744/6/v3w8v",{"$f":"VLOOKUP(B:B,Лист2!A:B,2,0)","v":1}]
["Гимадиев Ирек Ильшатович","sma23620/edu160744/6/v47qg",{"$f":"VLOOKUP(B:B,Лист2!A:B,2,0)","v":0}]
["Гатиятов Амир","sma23620/edu160744/6/gz24g",{"$f":"VLOOKUP(B:B,Лист2!A:B,2,0)","v":{"$error":"#N/A"}}]
["Гирфанов Ислам","sma23620/edu160744/6/g569v",{"$f":"VLOOKUP(B:B,Лист2!A:B,2,0)","v":{"$error":"#N/A"}}]
["Гатиятов Амир","sma23620/edu160744/6/g627g",{"$f":"VLOOKUP(B:B,Лист2!A:B,2,0)","v":{"$error":"#N/A"}}]
["Гатиятуллин Зуфар Наилевич","sma23620/edu160744/6/g798g",{"$f":"VLOOKUP(B:B,Лист2!A:B,2,0)","v":1}]
["Зиннатуллина Язиля Ильшатовна","sma23620/edu160744/6/gr25g",{"$f":"VLOOKUP(B:B,Лист2!A:B,2,0)","v":2}]
["Сафина Амина  Ильясовна","sma23620/edu160744/6/v833g",{"$f":"VLOOKUP(B:B,Лист2!A:B,2,0)","v":5}]
["Фарзиев Азамат Линарович","sma23620/edu160744/6/v9zqg",{"$f":"VLOOKUP(B:B,Лист2!A:B,2,0)","v":1}]
["Шарифуллин Данир Рафисович","sma23620/edu160744/6/v2w4g",{"$f":"VLOOKUP(B:B,Лист2!A:B,2,0)","v":0}]
["Набиуллина Язгуль Ильгизаровна","sma23620/edu160744/6/vq75v",{"$f":"VLOOKUP(B:B,Лист2!A:B,2,0)","v":2}]
["Гибадуллина Алина  Ильдаровна","sma23620/edu160744/6/gw37g",{"$f":"VLOOKUP(B:B,Лист2!A:B,2,0)","v":2}]
["Шириазданов Тимур Артурович","sma23720/edu160744/7/g788v",{"$f":"VLOOKUP(B:B,Лист2!A:B,2,0)","v":{"$error":"#N/A"}}]
["Попов Тимур Юрьевич","sma23720/edu160744/7/gr95v",{"$f":"VLOOKUP(B:B,Лист2!A:B,2,0)","v":0}]
["Сабиров Данир Ильнурович","sma23720/edu160744/7/v8r3v",{"$f":"VLOOKUP(B:B,Лист2!A:B,2,0)","v":0}]
["Гайфутдинов Муса Радикович","sma23720/edu160744/7/v92qg",{"$f":"VLOOKUP(B:B,Лист2!A:B,2,0)","v":0}]
["Валиев Нурислам Айнурович","sma23720/edu160744/7/v2z4v",{"$f":"VLOOKUP(B:B,Лист2!A:B,2,0)","v":1}]
["Хамидуллин Ильяс Наилевич","sma23720/edu160744/7/vqq5v",{"$f":"VLOOKUP(B:B,Лист2!A:B,2,0)","v":1}]
[" ","sma23720/edu160744/7/gw57g",{"$f":"VLOOKUP(B:B,Лист2!A:B,2,0)","v":{"$error":"#N/A"}}]
[" ","sma23720/edu160744/7/v348g",{"$f":"VLOOKUP(B:B,Лист2!A:B,2,0)","v":{"$error":"#N/A"}}]
[" ","sma23720/edu160744/7/v45qg",{"$f":"VLOOKUP(B:B,Лист2!A:B,2,0)","v":{"$error":"#N/A"}}]
["Шамсутдинов Руслан Альбертович","sma23720/edu160744/7/gz54v",{"$f":"VLOOKUP(B:B,Лист2!A:B,2,0)","v":1}]
["Мингалимов Ринат Рамилевич","sma23720/edu160744/7/g5w9g",{"$f":"VLOOKUP(B:B,Лист2!A:B,2,0)","v":0}]
["Фасхутдинов Искандер Ильдарович","sma23720/edu160744/7/g657v",{"$f":"VLOOKUP(B:B,Лист2!A:B,2,0)","v":3}]
["Гимранов Булат Агдасович","sma23720/edu160744/7/g768v",{"$f":"VLOOKUP(B:B,Лист2!A:B,2,0)","v":{"$error":"#N/A"}}]
["Харисов Рамазан Рамисович","sma23720/edu160744/7/gr55v",{"$f":"VLOOKUP(B:B,Лист2!A:B,2,0)","v":0}]
["Денисова Диана Эльнаровна","sma23720/edu160744/7/v863v",{"$f":"VLOOKUP(B:B,Лист2!A:B,2,0)","v":1}]
["Хисамеева Лейсан Марселевна","sma23720/edu160744/7/v95qv",{"$f":"VLOOKUP(B:B,Лист2!A:B,2,0)","v":2}]
["Ибрагимов Инсаф Ильнарович","sma23720/edu160744/7/v254g",{"$f":"VLOOKUP(B:B,Лист2!A:B,2,0)","v":2}]
["Зиганшина САмира Фанисовна ","sma23720/edu160744/7/vq65g",{"$f":"VLOOKUP(B:B,Лист2!A:B,2,0)","v":{"$error":"#N/A"}}]
["Сабирова Мадина Руслановна","sma23720/edu160744/7/gwr7v",{"$f":"VLOOKUP(B:B,Лист2!A:B,2,0)","v":1}]
["Сабирова Диляра Руслановна","sma23720/edu160744/7/v3w8v",{"$f":"VLOOKUP(B:B,Лист2!A:B,2,0)","v":0}]
["Сираева Ясмина Ильназовна ","sma23720/edu160744/7/v47qg",{"$f":"VLOOKUP(B:B,Лист2!A:B,2,0)","v":2}]
["Гиззатуллина Лейсан Ленаровна","sma23720/edu160744/7/gz24g",{"$f":"VLOOKUP(B:B,Лист2!A:B,2,0)","v":3}]
["Галлямов Аскар Марселевич","sma23720/edu160744/7/g569v",{"$f":"VLOOKUP(B:B,Лист2!A:B,2,0)","v":3}]
["Курбангалеева Руфина Руслановна","sma23720/edu160744/7/g627g",{"$f":"VLOOKUP(B:B,Лист2!A:B,2,0)","v":3}]
["Ахатов Карим Ильдарович","sma23720/edu160744/7/g798g",{"$f":"VLOOKUP(B:B,Лист2!A:B,2,0)","v":1}]
["Рахимуллина Элина Рамилевна","sma23720/edu160744/7/gr25g",{"$f":"VLOOKUP(B:B,Лист2!A:B,2,0)","v":0}]
["Фассахутдинов Тамирлан Динарович","sma23720/edu160744/7/v833g",{"$f":"VLOOKUP(B:B,Лист2!A:B,2,0)","v":2}]
["Шагиев Радмир Русланович","sma23720/edu160744/7/v9zqg",{"$f":"VLOOKUP(B:B,Лист2!A:B,2,0)","v":0}]
["Галимов Самат Ришатович","sma23720/edu160744/7/v2w4g",{"$f":"VLOOKUP(B:B,Лист2!A:B,2,0)","v":{"$error":"#N/A"}}]
[null,null,{"$f":"VLOOKUP(B:B,Лист2!A:B,2,0)","v":{"$error":"#N/A"}}]
[null,null,{"$f":"VLOOKUP(B:B,Лист2!A:B,2,0)","v":{"$error":"#N/A"}}]
["Иванова Лилиана Радиковна","sma23820/edu160744/8/v8q57",{"$f":"VLOOKUP(B:B,Лист2!A:B,2,0)","v":1}]
["Гилязова Гульназ Маратовна","sma23820/edu160744/8/v9qr3",{"$f":"VLOOKUP(B:B,Лист2!A:B,2,0)","v":1}]
["Сиразиев Раиль Рустамович","sma23820/edu160744/8/v284z",{"$f":"VLOOKUP(B:B,Лист2!A:B,2,0)","v":{"$error":"#N/A"}}]
["Арсланов Данис Ильсурович","sma23820/edu160744/8/vq7wq",{"$f":"VLOOKUP(B:B,Лист2!A:B,2,0)","v":{"$error":"#N/A"}}]
["Ахмадеев Айназ Рамилевич","sma23820/edu160744/8/gw36r",{"$f":"VLOOKUP(B:B,Лист2!A:B,2,0)","v":{"$error":"#N/A"}}]
["Бадртдинов Ислам Ильдусович","sma23820/edu160744/8/v32q2",{"$f":"VLOOKUP(B:B,Лист2!A:B,2,0)","v":0}]
["Бикушев Амир Маратович","sma23820/edu160744/8/v4499",{"$f":"VLOOKUP(B:B,Лист2!A:B,2,0)","v":3}]
["Габдрахманова Азалия Ильсуровна","sma23820/edu160744/8/gz88g",{"$f":"VLOOKUP(B:B,Лист2!A:B,2,0)","v":1}]
["Гайнуллина Лейла Ильнуровна","sma23820/edu160744/8/g5z4v",{"$f":"VLOOKUP(B:B,Лист2!A:B,2,0)","v":0}]
["Гарафутдинова Амина Ильфатовна","sma23820/edu160744/8/g636v",{"$f":"VLOOKUP(B:B,Лист2!A:B,2,0)","v":3}]
["Гасимова Динара Айратовна","sma23820/edu160744/8/g72wv",{"$f":"VLOOKUP(B:B,Лист2!A:B,2,0)","v":2}]
["Гатин Тимур Фаритович","sma23820/edu160744/8/gr4wg",{"$f":"VLOOKUP(B:B,Лист2!A:B,2,0)","v":{"$error":"#N/A"}}]
["Климова Диана Сергеевна","sma23820/edu160744/8/v887v",{"$f":"VLOOKUP(B:B,Лист2!A:B,2,0)","v":{"$error":"#N/A"}}]
["Мубаракшин Камиль Рустемович","sma23820/edu160744/8/v973v",{"$f":"VLOOKUP(B:B,Лист2!A:B,2,0)","v":{"$error":"#N/A"}}]
["Мухамедшин Самат Мансурович","sma23820/edu160744/8/v29zg",{"$f":"VLOOKUP(B:B,Лист2!A:B,2,0)","v":0}]
["Сейдаметов Эрнест Эдемович","sma23820/edu160744/8/vq5qv",{"$f":"VLOOKUP(B:B,Лист2!A:B,2,0)","v":{"$error":"#N/A"}}]
["Фаттахов Рамазан Маратович","sma23820/edu160744/8/gwzrv",{"$f":"VLOOKUP(B:B,Лист2!A:B,2,0)","v":{"$error":"#N/A"}}]
["Хазеева Ралина Маратовна","sma23820/edu160744/8/v3r2g",{"$f":"VLOOKUP(B:B,Лист2!A:B,2,0)","v":0}]
["Шайхатдаров Нурислам Ильдусович","sma23820/edu160744/8/v469v",{"$f":"VLOOKUP(B:B,Лист2!A:B,2,0)","v":{"$error":"#N/A"}}]
["Бакиров Азат Алмазович","sma23820/edu160744/8/gzz8g",{"$f":"VLOOKUP(B:B,Лист2!A:B,2,0)","v":5}]
["Гайсина  Сылу Забировна","sma23820/edu160744/8/g544v",{"$f":"VLOOKUP(B:B,Лист2!A:B,2,0)","v":4}]
["Лутфуллин Сулейман Рафаэлевич","sma23820/edu160744/8/g6q6v",{"$f":"VLOOKUP(B:B,Лист2!A:B,2,0)","v":{"$error":"#N/A"}}]
["Нигматуллин Ильяр Ильназович","sma23820/edu160744/8/g7qwg",{"$f":"VLOOKUP(B:B,Лист2!A:B,2,0)","v":{"$error":"#N/A"}}]
["Миннигалиев Раиль Рамимлевич","sma23820/edu160744/8/gr3wv",{"$f":"VLOOKUP(B:B,Лист2!A:B,2,0)","v":0}]
["Кикнадзе  Ландыш Рустемовна","sma23820/edu160744/8/v897g",{"$f":"VLOOKUP(B:B,Лист2!A:B,2,0)","v":2}]
["Садриева Ляйсан Фаридовна","sma23820/edu160744/8/v983g",{"$f":"VLOOKUP(B:B,Лист2!A:B,2,0)","v":{"$error":"#N/A"}}]
["Гайнетдинова Джамиля Ильдаровна","sma23820/edu160744/8/v26zv",{"$f":"VLOOKUP(B:B,Лист2!A:B,2,0)","v":{"$error":"#N/A"}}]
["Газизов  Адель Фаргатович","sma23820/edu160744/8/vq4qg",{"$f":"VLOOKUP(B:B,Лист2!A:B,2,0)","v":2}]
["Галиуллина Айзиряк Ильназовна","sma23820/edu160744/8/gw7rg",{"$f":"VLOOKUP(B:B,Лист2!A:B,2,0)","v":0}]
[null,null,{"$f":"VLOOKUP(B:B,Лист2!A:B,2,0)","v":{"$error":"#N/A"}}]
["Фасахова Камила Ринатовна","sma231020/edu160744/10/g7z8v",{"$f":"VLOOKUP(B:B,Лист2!A:B,2,0)","v":1}]
["Галлямова Диляра Равилевна","sma231020/edu160744/10/grq5v",{"$f":"VLOOKUP(B:B,Лист2!A:B,2,0)","v":5}]
["Гатина Камила Ленаровна","sma231020/edu160744/10/v8q3g",{"$f":"VLOOKUP(B:B,Лист2!A:B,2,0)","v":2}]
["Даутова Гульшат Рифнуровна","sma231020/edu160744/10/v9qqv",{"$f":"VLOOKUP(B:B,Лист2!A:B,2,0)","v":1}]
["Имамиев Амир Альбертович","sma231020/edu160744/10/v284v",{"$f":"VLOOKUP(B:B,Лист2!A:B,2,0)","v":0}]
["Кадирова Алина Марсовна","sma231020/edu160744/10/3vq5v",{"$f":"VLOOKUP(B:B,Лист2!A:B,2,0)","v":1}]
["Мизгирев Никита Сергеевич","sma231020/edu160744/10/qgw7g",{"$f":"VLOOKUP(B:B,Лист2!A:B,2,0)","v":{"$error":"#N/A"}}]
["Садикова Эмира Эриковна","sma231020/edu160744/10/6v38g",{"$f":"VLOOKUP(B:B,Лист2!A:B,2,0)","v":3}]
["Салахутдинова Дина Ильнуровна","sma231020/edu160744/10/wv4qg",{"$f":"VLOOKUP(B:B,Лист2!A:B,2,0)","v":2}]
["Салимгареев Хаким Рустемович","sma231020/edu160744/10/4gz4g",{"$f":"VLOOKUP(B:B,Лист2!A:B,2,0)","v":{"$error":"#N/A"}}]
["Хабибулин Шамиль Раисович","sma231020/edu160744/10/6g59g",{"$f":"VLOOKUP(B:B,Лист2!A:B,2,0)","v":5}]
["Харитонов Никита Александрович","sma231020/edu160744/10/7g67v",{"$f":"VLOOKUP(B:B,Лист2!A:B,2,0)","v":1}]
[" Иванов Тимур Валентинович","sma231020/edu160744/10/7g78v",{"$f":"VLOOKUP(B:B,Лист2!A:B,2,0)","v":2}]
["Адиева Амелия Альбертовна","sma231020/edu160744/10/8gr5v",{"$f":"VLOOKUP(B:B,Лист2!A:B,2,0)","v":4}]
["Харисов Камиль Ренатович","sma231020/edu160744/10/2v83g",{"$f":"VLOOKUP(B:B,Лист2!A:B,2,0)","v":2}]
["Мухлисуллин Ратмир Артурович","sma231020/edu160744/10/wv9qv",{"$f":"VLOOKUP(B:B,Лист2!A:B,2,0)","v":0}]
["Алексеева Аделина Денисовна","sma231020/edu160744/10/v8q57",{"$f":"VLOOKUP(B:B,Лист2!A:B,2,0)","v":2}]
["Шафиков Карим Маратович","sma231020/edu160744/10/v9qr3",{"$f":"VLOOKUP(B:B,Лист2!A:B,2,0)","v":{"$error":"#N/A"}}]
["Метрухина Эмилия Руслановна","sma231020/edu160744/10/v284z",{"$f":"VLOOKUP(B:B,Лист2!A:B,2,0)","v":4}]
[null,null,{"$f":"VLOOKUP(B:B,Лист2!A:B,2,0)","v":{"$error":"#N/A"}}]
[null,null,{"$f":"VLOOKUP(B:B,Лист2!A:B,2,0)","v":{"$error":"#N/A"}}]
[null,null,{"$f":"VLOOKUP(B:B,Лист2!A:B,2,0)","v":{"$error":"#N/A"}}]
[null,null,{"$f":"VLOOKUP(B:B,Лист2!A:B,2,0)","v":{"$error":"#N/A"}}]
[null,null,{"$f":"VLOOKUP(B:B,Лист2!A:B,2,0)","v":{"$error":"#N/A"}}]

{"sheet":"Лист2","index":3,"n_rows":149,"n_cols":2,"rows_kept":149}
["sma23520/edu160744/5/v469v",4]
["sma23520/edu160744/5/gr3wv",4]
["sma23520/edu160744/5/gw36r",4]
["sma23520/edu160744/5/v26zv",3]
["sma23520/edu160744/5/g6z6g",3]
["sma23520/edu160744/5/g636v",2]
["sma23520/edu160744/5/gr8wg",2]
["sma23520/edu160744/5/gzr8g",2]
["sma23520/edu160744/5/v284z",2]
["sma23520/edu160744/5/gz88g",2]
["sma23520/edu160744/5/gwqrg",1]
["sma23520/edu160744/5/v9qr3",1]
["sma23520/edu160744/5/vq7wq",1]
["sma23520/edu160744/5/v983g",1]
["sma23520/edu160744/5/g6q6v",1]
["sma23520/edu160744/5/grrwg",1]
["sma23520/edu160744/5/v943g",1]
["sma23520/edu160744/5/v4z9v",1]
["sma23520/edu160744/5/gz98v",0]
["sma23520/edu160744/5/gwzrv",0]
["sma23520/edu160744/5/vq4qg",0]
["sma23520/edu160744/5/v3r2g",0]
["sma23520/edu160744/5/g7wwg",0]
["sma23520/edu160744/5/v2qzg",0]
["sma23520/edu160744/5/v8q57",0]
["sma23520/edu160744/5/v352v",0]
["sma23520/edu160744/5/g544v",0]
["sma23520/edu160744/5/v897g",0]
["sma23520/edu160744/5/g554g",0]
["sma23520/edu160744/5/g5z4v",0]
["sma23520/edu160744/5/v8z7v",0]
["sma23520/edu160744/5/g72wv",0]
["sma23520/edu160744/5/gw7rg",0]
["sma23520/edu160744/5/vq5qv",0]
["sma23520/edu160744/5/gr4wg",0]
["sma23620/edu160744/6/v4wqg",6]
["sma23620/edu160744/6/v833g",5]
["sma23620/edu160744/6/vq65g",4]
["sma23620/edu160744/6/g768v",3]
["sma23620/edu160744/6/g5w9g",2]
["sma23620/edu160744/6/v338v",2]
["sma23620/edu160744/6/vq75v",2]
["sma23620/edu160744/6/v45qg",2]
["sma23620/edu160744/6/gr25g",2]
["sma23620/edu160744/6/gw37g",2]
["sma23620/edu160744/6/v3w8v",1]
["sma23620/edu160744/6/gr95v",1]
["sma23620/edu160744/6/v863v",1]
["sma23620/edu160744/6/g738g",1]
["sma23620/edu160744/6/vqq5v",1]
["sma23620/edu160744/6/gw47v",1]
["sma23620/edu160744/6/v9zqg",1]
["sma23620/edu160744/6/grq5v",1]
["sma23620/edu160744/6/gz64g",1]
["sma23620/edu160744/6/g798g",1]
["sma23620/edu160744/6/v93qv",1]
["sma23620/edu160744/6/v9wqv",1]
["sma23620/edu160744/6/v224v",0]
["sma23620/edu160744/6/v2w4g",0]
["sma23620/edu160744/6/v47qg",0]
["sma23620/edu160744/6/gr55v",0]
["sma23720/edu160744/7/g569v",3]
["sma23720/edu160744/7/g627g",3]
["sma23720/edu160744/7/g657v",3]
["sma23720/edu160744/7/gz24g",3]
["sma23720/edu160744/7/v47qg",2]
["sma23720/edu160744/7/v95qv",2]
["sma23720/edu160744/7/v254g",2]
["sma23720/edu160744/7/v833g",2]
["sma23720/edu160744/7/v863v",1]
["sma23720/edu160744/7/vqq5v",1]
["sma23720/edu160744/7/g798g",1]
["sma23720/edu160744/7/gwr7v",1]
["sma23720/edu160744/7/gz54v",1]
["sma23720/edu160744/7/v2z4v",1]
["sma23720/edu160744/7/g5w9g",0]
["sma23720/edu160744/7/gr25g",0]
["sma23720/edu160744/7/v8r3v",0]
["sma23720/edu160744/7/v92qg",0]
["sma23720/edu160744/7/gr95v",0]
["sma23720/edu160744/7/v9zqg",0]
["sma23720/edu160744/7/v3w8v",0]
["sma23720/edu160744/7/gr55v",0]
["sma23820/edu160744/8/gzz8g",5]
["sma23820/edu160744/8/g544v",4]
["sma23820/edu160744/8/g636v",3]
["sma23820/edu160744/8/v4499",3]
["sma23820/edu160744/8/v897g",2]
["sma23820/edu160744/8/g72wv",2]
["sma23820/edu160744/8/vq4qg",2]
["sma23820/edu160744/8/v9qr3",1]
["sma23820/edu160744/8/v8q57",1]
["sma23820/edu160744/8/gz88g",1]
["sma23820/edu160744/8/v32q2",0]
["sma23820/edu160744/8/v29zg",0]
["sma23820/edu160744/8/gw7rg",0]
["sma23820/edu160744/8/v3r2g",0]
["sma23820/edu160744/8/gr3wv",0]
["sma23820/edu160744/8/g5z4v",0]
["sma23920/edu160744/9/v887v",5]
["sma23920/edu160744/9/v29zg",3]
["sma23920/edu160744/9/gw36r",2]
["sma23920/edu160744/9/v8q57",2]
["sma23920/edu160744/9/g544v",2]
["sma23920/edu160744/9/v284z",2]
["sma23920/edu160744/9/gr4wg",1]
["sma23920/edu160744/9/gz88g",1]
["sma23920/edu160744/9/g636v",1]
["sma23920/edu160744/9/v32q2",0]
["sma23920/edu160744/9/v897g",0]
["sma23920/edu160744/9/g7qwg",0]
["sma23920/edu160744/9/g72wv",0]
["sma23920/edu160744/9/g5z4v",0]
["sma23920/edu160744/9/v9qr3",0]
["sma23920/edu160744/9/v4499",0]
["sma23920/edu160744/9/v973v",0]
["sma23920/edu160744/9/g6q6v",0]
["sma231020/edu160744/10/6g59g",5]
["sma231020/edu160744/10/grq5v",5]
["sma231020/edu160744/10/v284z",4]
["sma231020/edu160744/10/8gr5v",4]
["sma231020/edu160744/10/6v38g",3]
["sma231020/edu160744/10/vq7wq",3]
["sma231020/edu160744/10/v8q3g",2]
["sma231020/edu160744/10/2v83g",2]
["sma231020/edu160744/10/wv4qg",2]
["sma231020/edu160744/10/v8q57",2]
["sma231020/edu160744/10/v32q2",2]
["sma231020/edu160744/10/gw36r",2]
["sma231020/edu160744/10/7g78v",2]
["sma231020/edu160744/10/v9qqv",1]
["sma231020/edu160744/10/3vq5v",1]
["sma231020/edu160744/10/7g67v",1]
["sma231020/edu160744/10/g7z8v",1]
["sma231020/edu160744/10/v284v",0]
["sma231020/edu160744/10/wv9qv",0]
["sma231120/edu160744/11/gw37g",6]
["sma231120/edu160744/11/6v38g",5]
["sma231120/edu160744/11/g5q9g",4]
["sma231120/edu160744/11/grq5v",3]
["sma231120/edu160744/11/g6r7g",3]
["sma231120/edu160744/11/v8q3g",1]
["sma231120/edu160744/11/qgw7g",1]
["sma231120/edu160744/11/3vq5v",1]
["sma231120/edu160744/11/wv4qg",1]
["sma231120/edu160744/11/4gz4g",0]
["sma231120/edu160744/11/vq75v",0]
["sma231120/edu160744/11/v328g",0]
["sma231120/edu160744/11/g7z8v",0]